bitfinex/quotes_SOLUSD_20250316
["timestamp","ask_amount","ask_price","bid_price","bid_amount"]
[1742136895257,0.03,129.28,129.27,18.70976463]
[1742136901676,0.03,129.28,129.26,18.70976463]
[1742136901880,0.03,129.28,129.27,18.70976463]
[1742136905699,0.03,129.28,129.26,18.70976463]
[1742136906784,0.03,129.28,129.25,18.70976463]
[1742136907487,0.03,129.28,129.22,6.96]
[1742136907692,18.73976463,129.28,129.23,18.70976463]
[1742136908191,18.70976463,129.27,129.22,18.70976463]
[1742136908371,18.70976463,129.26,129.22,18.70976463]
[1742136908573,18.70976463,129.25,129.21,0.063]
[1742136909269,18.70976463,129.26,129.21,18.77276463]
[1742136909469,18.70976463,129.25,129.21,0.063]
[1742136910491,18.70976463,129.26,129.21,18.77276463]
[1742136911690,18.70976463,129.25,129.21,0.063]
[1742136911989,18.70976463,129.25,129.21,18.77276463]
[1742136912198,18.70976463,129.25,129.21,0.063]
[1742136912366,18.70976463,129.25,129.21,18.77276463]
[1742136912571,18.70976463,129.25,129.21,0.063]
[1742136913302,18.70976463,129.24,129.21,0.063]
[1742136913588,18.70976463,129.22,129.21,0.063]
[1742136914191,18.70976463,129.23,129.21,0.063]
[1742136915276,18.70976463,129.22,129.21,0.063]
[1742136920095,0.28432314,129.23,129.21,0.063]
[1742136920299,18.70976463,129.22,129.21,0.063]
[1742136921697,18.8519262,129.23,129.21,0.063]
[1742136924979,18.70976463,129.22,129.21,0.063]
[1742136928118,18.8519262,129.23,129.21,0.063]
[1742136928821,18.70976463,129.22,129.21,0.063]
[1742136929934,0.14216157,129.23,129.21,0.063]
[1742136930103,18.8519262,129.23,129.21,0.063]
[1742136930709,18.70976463,129.22,129.21,0.063]
[1742136931136,11.99098807,129.22,129.21,0.063]
[1742136931324,12.13314964,129.23,129.21,0.063]
[1742136931898,11.99098807,129.22,129.21,0.063]
[1742136933832,12.13314964,129.23,129.21,0.063]
[1742136935226,0.03,129.25,129.22,31.99098807]
[1742136935535,0.03,129.25,129.24,11.99098807]
[1742136935730,30.67063693,129.25,129.21,0.063]
[1742136935905,0.28432314,129.24,129.21,0.063]
[1742136936831,12.27531121,129.24,129.21,0.063]
[1742136937427,11.99098807,129.23,129.21,0.063]
[1742136937634,11.99098807,129.22,129.21,0.063]
[1742136937829,12.02098807,129.23,129.21,0.063]
[1742136941033,30.67063693,129.23,129.21,0.063]
[1742136941340,11.99098807,129.22,129.21,0.063]
[1742136942040,30.92496007,129.22,129.21,0.063]
[1742136943824,38.66366007,129.22,129.21,0.063]
[1742136944324,30.92496007,129.22,129.21,0.063]
[1742136947642,13.93939335,129.23,129.21,0.063]
[1742136947643,0.03,129.23,129.21,0.063]
[1742136947827,12.16314964,129.23,129.21,0.063]
[1742136948144,0.17216157,129.23,129.21,0.063]
[1742136948536,0.03,129.23,129.21,0.063]
[1742136950347,0.03,129.22,129.21,0.063]
[1742136950938,0.03,129.22,129.21,12.05398807]
[1742136952338,0.03,129.22,129.21,0.063]
[1742136959576,12.02098807,129.22,129.21,0.063]
[1742136959946,0.03,129.22,129.21,0.063]
[1742136961167,0.03,129.22,129.21,12.05398807]
[1742136961471,0.03,129.22,129.21,0.063]
[1742136965274,0.03,129.22,129.21,12.05398807]
[1742136966378,0.03,129.22,129.21,18.24058807]
[1742136966668,0.03,129.22,129.21,38.73676007]
[1742136967851,0.03,129.22,129.21,19.80278807]
[1742136971246,0.03,129.22,129.21,38.73676007]
[1742136971447,0.03,129.28,129.26,1.5622]
[1742136971650,0.03,129.28,129.27,11.99098807]
[1742136973091,0.03,129.28,129.27,18.70227178]
[1742136975293,0.03,129.28,129.27,38.79612465]
[1742136975493,0.03,129.31,129.3,20.0]
[1742136975697,0.03,129.31,129.3,38.70227178]
[1742136976871,0.03,129.31,129.3,76.33851556]
[1742136977080,0.03,129.31,129.3,84.60921556]
[1742136977280,0.03,129.31,129.3,85.10921556]
[1742136977491,0.03,129.31,129.3,84.60921556]
[1742136978284,0.03,129.34,129.33,20.28432314]
[1742136978478,0.03,129.34,129.33,58.79554178]
[1742136978802,0.03,129.34,129.33,65.75554178]
[1742136978977,0.03,129.41,129.37,20.28432314]
[1742136979298,18.73227178,129.41,129.36,18.70227178]
[1742136979497,18.70227178,129.4,129.35,18.70227178]
[1742136980373,0.03,129.41,129.37,18.70227178]
[1742136980574,18.73227178,129.41,129.36,20.0]
[1742136980797,0.03,129.41,129.36,20.0]
[1742136980996,18.70227178,129.4,129.36,20.0]
[1742136981172,18.73227178,129.41,129.36,38.70227178]
[1742136981699,0.03,129.41,129.39,18.70227178]
[1742136982383,0.03,129.41,129.4,18.70227178]
[1742136982895,0.03,129.41,129.39,18.70227178]
[1742136983684,0.03,129.41,129.38,18.70227178]
[1742136983884,0.03,129.41,129.37,18.70227178]
[1742136984198,0.03,129.41,129.38,18.70227178]
[1742136984398,0.03,129.41,129.4,18.70227178]
[1742136984710,0.03,129.41,129.4,37.63624378]
[1742136984880,0.03,129.41,129.4,18.70227178]
[1742136985219,0.03,129.41,129.4,38.79488957]
[1742136985381,0.03,129.41,129.4,37.63624378]
[1742136986683,0.03,129.41,129.4,57.49711023]
[1742136987082,2.8049098,129.45,129.44,20.28432314]
[1742136987279,2.8049098,129.45,129.44,18.98659492]
[1742136987590,2.8049098,129.45,129.44,18.84443335]
[1742136987775,2.8049098,129.45,129.44,25.23396194]
[1742136988287,2.8049098,129.45,129.44,26.39214977]
[1742136988597,2.8049098,129.45,129.44,18.98659492]
[1742136988990,2.8049098,129.45,129.4,6.96]
[1742136989201,2.8049098,129.45,129.4,18.70227178]
[1742136989390,2.8049098,129.45,129.41,18.70227178]
[1742136989785,2.8049098,129.45,129.43,18.70227178]
[1742136990387,2.8049098,129.45,129.44,18.70227178]
[1742136990684,2.8049098,129.45,129.44,18.98659492]
[1742136991605,2.8049098,129.45,129.44,18.70227178]
[1742136994099,0.03,129.54,129.47,20.0]
[1742136994296,0.03,129.54,129.53,20.0]
[1742136994618,0.03,129.54,129.53,38.70227178]
[1742136995192,0.03,129.54,129.53,20.0]
[1742136995388,0.03,129.54,129.53,38.70227178]
[1742136995602,0.03,129.54,129.53,18.70227178]
[1742136995803,0.03,129.54,129.53,37.40454356]
[1742136996010,18.70227178,129.64,129.56,20.0]
[1742136996327,18.70227178,129.61,129.56,18.70227178]
[1742136996497,20.0,129.63,129.54,0.28432314]
[1742136996687,18.70227178,129.6,129.51,8.4573529]
[1742136996886,20.0,129.63,129.55,18.70227178]
[1742136997301,18.70227178,129.6,129.55,18.70227178]
[1742136997489,18.79181043,129.65,129.54,20.0]
[1742136997701,34.21047178,129.66,129.54,20.0]
[1742136997909,8.0882,129.66,129.59,18.70227178]
[1742136998092,18.70227178,129.64,129.59,18.70227178]
[1742136998489,7.7,129.65,129.6,18.70227178]
[1742136998684,8.0882,129.66,129.61,18.70227178]
[1742136998891,0.03,129.67,129.63,18.70227178]
[1742136999201,0.03,129.67,129.64,18.70227178]
[1742136999414,18.70227178,129.66,129.6,20.0]
[1742136999722,0.03,129.67,129.6,20.0]
[1742136999723,0.03,129.67,129.6,18.70227178]
[1742136999904,18.70227178,129.63,129.58,18.70227178]
[1742137000105,0.03,129.67,129.57,6.1058]
[1742137000313,18.70227178,129.64,129.59,18.70227178]
[1742137000614,18.70227178,129.63,129.58,18.70227178]
[1742137000925,18.70227178,129.59,129.54,18.70227178]
[1742137001089,29.80942763,129.59,129.54,29.80942763]
[1742137001409,29.80942763,129.57,129.5,1.5611]
[1742137001615,29.80942763,129.55,129.5,29.80942763]
[1742137001912,7.72,129.58,129.53,29.80942763]
[1742137002104,37.52942763,129.58,129.53,29.80942763]
[1742137002610,29.80942763,129.55,129.48,6.1058]
[1742137002791,29.80942763,129.54,129.48,6.1058]
[1742137002987,18.64964886,129.57,129.48,29.80942763]
[1742137003202,29.80942763,129.53,129.47,7.72]
[1742137003513,29.80942763,129.54,129.49,29.80942763]
[1742137004008,29.80942763,129.53,129.48,49.80942763]
[1742137004710,29.80942763,129.53,129.48,20.0]
[1742137005015,29.80942763,129.52,129.46,29.80942763]
[1742137005208,29.80942763,129.51,129.42,45.20852763]
[1742137005517,29.80942763,129.51,129.46,29.80942763]
[1742137005713,29.80942763,129.52,129.47,29.80942763]
[1742137006103,29.80942763,129.53,129.48,29.80942763]
[1742137006306,37.52942763,129.55,129.49,29.80942763]
[1742137006513,37.52942763,129.55,129.5,29.80942763]
[1742137006701,29.80942763,129.52,129.47,29.80942763]
[1742137007103,26.36964886,129.55,129.47,29.80942763]
[1742137007104,29.80942763,129.53,129.47,29.80942763]
[1742137007293,29.80942763,129.54,129.48,29.80942763]
[1742137007492,29.80942763,129.54,129.49,29.80942763]
[1742137007723,29.80942763,129.52,129.47,29.80942763]
[1742137008418,29.80942763,129.54,129.48,29.80942763]
[1742137008605,26.36964886,129.55,129.49,29.80942763]
[1742137008799,29.80942763,129.54,129.49,29.80942763]
[1742137008999,37.52942763,129.55,129.5,29.80942763]
[1742137009400,29.80942763,129.54,129.45,21.15824496]
[1742137009610,29.80942763,129.54,129.49,29.80942763]
[1742137009817,29.80942763,129.55,129.49,29.80942763]
[1742137010019,29.80942763,129.54,129.49,29.80942763]
[1742137010202,29.80942763,129.53,129.48,29.80942763]
[1742137010519,9.3001,129.56,129.51,29.80942763]
[1742137010708,39.10952763,129.56,129.51,29.80942763]
[1742137010896,0.03,129.54,129.51,29.80942763]
[1742137011505,0.03,129.54,129.5,29.80942763]
[1742137011714,0.03,129.54,129.49,0.063]
[1742137011715,0.03,129.54,129.51,29.80942763]
[1742137011901,0.03,129.54,129.53,29.80942763]
[1742137012807,0.03,129.54,129.52,20.0]
[1742137013007,0.03,129.54,129.53,59.61885526]
[1742137013612,0.03,129.54,129.53,61.06067738]
[1742137014125,29.80942763,129.63,129.56,20.0]
[1742137014326,29.80942763,129.6,129.52,7.74]
[1742137014621,29.80942763,129.59,129.54,49.80942763]
[1742137014822,29.80942763,129.6,129.55,29.80942763]
[1742137015220,29.80942763,129.59,129.54,49.80942763]
[1742137015411,29.80942763,129.58,129.53,29.80942763]
[1742137015613,29.80942763,129.58,129.51,6.5865]
[1742137015911,7.7,129.6,129.56,29.80942763]
[1742137016302,7.79,129.63,129.57,29.80942763]
[1742137016303,29.80942763,129.62,129.57,29.80942763]
[1742137017121,29.80942763,129.61,129.53,7.72]
[1742137017319,29.80942763,129.61,129.56,29.80942763]
[1742137017729,29.80942763,129.6,129.55,29.80942763]
[1742137018022,7.79,129.63,129.56,29.80942763]
[1742137018220,37.59942763,129.63,129.57,29.80942763]
[1742137018530,37.59942763,129.63,129.55,29.80942763]
[1742137018531,29.80942763,129.6,129.55,29.80942763]
[1742137019038,29.80942763,129.61,129.55,29.80942763]
[1742137019208,7.79,129.63,129.56,29.80942763]
[1742137019411,29.80942763,129.62,129.57,29.80942763]
[1742137019614,29.80942763,129.64,129.59,29.80942763]
[1742137020308,20.20314886,129.67,129.62,29.80942763]
[1742137020309,0.03,129.67,129.62,29.80942763]
[1742137020524,0.03,129.67,129.63,29.80942763]
[1742137020715,29.83942763,129.67,129.62,29.80942763]
[1742137020912,29.80942763,129.66,129.59,1.15699892]
[1742137021233,0.03,129.67,129.62,29.80942763]
[1742137021424,29.83942763,129.67,129.62,29.80942763]
[1742137021630,29.80942763,129.66,129.61,29.80942763]
[1742137021804,0.03,129.67,129.61,29.80942763]
[1742137022011,29.80942763,129.66,129.61,29.80942763]
[1742137022436,0.03,129.67,129.62,29.80942763]
[1742137022815,29.80942763,129.66,129.61,29.80942763]
[1742137023329,29.80942763,129.66,129.59,20.0]
[1742137023529,0.03,129.67,129.59,49.80942763]
[1742137023705,29.80942763,129.64,129.59,20.0]
[1742137023913,29.80942763,129.63,129.58,29.80942763]
[1742137024431,29.80942763,129.64,129.59,29.80942763]
[1742137025130,29.80942763,129.63,129.57,7.68]
[1742137025440,29.80942763,129.63,129.58,29.80942763]
[1742137026015,29.80942763,129.62,129.57,29.80942763]
[1742137026732,29.80942763,129.63,129.57,29.80942763]
[1742137026934,29.80942763,129.61,129.56,29.80942763]
[1742137027239,29.80942763,129.62,129.57,29.80942763]
[1742137027438,29.80942763,129.61,129.56,29.80942763]
[1742137027626,29.30942763,129.61,129.56,29.80942763]
[1742137027831,18.64964886,129.63,129.56,29.80942763]
[1742137028132,29.80942763,129.61,129.56,29.80942763]
[1742137028758,29.80942763,129.62,129.57,29.80942763]
[1742137028931,29.80942763,129.62,129.54,29.80942763]
[1742137028932,35.92602763,129.63,129.58,29.80942763]
[1742137029113,6.1166,129.63,129.59,29.80942763]
[1742137029316,7.66,129.64,129.6,29.80942763]
[1742137029624,7.66,129.64,129.57,49.80942763]
[1742137029625,29.80942763,129.62,129.57,49.80942763]
[1742137029829,29.80942763,129.61,129.57,20.0]
[1742137030352,29.80942763,129.62,129.57,29.80942763]
[1742137030635,29.80942763,129.61,129.56,29.80942763]
[1742137031021,18.64964886,129.63,129.57,29.80942763]
[1742137031325,29.80942763,129.61,129.56,29.80942763]
[1742137032823,29.80942763,129.6,129.52,326.02956157]
[1742137033139,18.64964886,129.62,129.52,325.8874]
[1742137033318,29.80942763,129.6,129.55,29.80942763]
[1742137034838,29.80942763,129.59,129.54,29.80942763]
[1742137035733,29.80942763,129.6,129.55,29.80942763]
[1742137036133,31.41792763,129.61,129.56,29.80942763]
[1742137036316,29.80942763,129.6,129.55,29.80942763]
[1742137036712,29.80942763,129.6,129.56,29.80942763]
[1742137037131,29.80942763,129.6,129.55,29.80942763]
[1742137037717,29.80942763,129.6,129.56,29.80942763]
[1742137038836,1.6085,129.61,129.56,29.80942763]
[1742137039154,29.80942763,129.6,129.56,29.80942763]
[1742137039324,29.80942763,129.6,129.52,6.2274]
[1742137039650,29.80942763,129.6,129.55,29.80942763]
[1742137039944,29.80942763,129.59,129.52,6.2274]
[1742137040243,29.80942763,129.6,129.55,29.80942763]
[1742137040449,29.80942763,129.59,129.55,29.80942763]
[1742137040820,29.80942763,129.6,129.55,29.80942763]
[1742137041033,1.6085,129.61,129.55,29.80942763]
[1742137041227,29.80942763,129.6,129.55,29.80942763]
[1742137041416,29.80942763,129.6,129.52,6.2274]
[1742137041622,29.80942763,129.6,129.55,29.80942763]
[1742137042132,29.80942763,129.59,129.55,29.80942763]
[1742137042338,1.6085,129.61,129.55,29.80942763]
[1742137042634,31.41792763,129.61,129.56,29.80942763]
[1742137043546,1.6085,129.61,129.58,29.80942763]
[1742137043944,7.62,129.64,129.6,29.80942763]
[1742137044622,29.80942763,129.63,129.57,20.0]
[1742137044838,29.80942763,129.63,129.58,29.80942763]
[1742137045042,29.80942763,129.62,129.57,49.80942763]
[1742137045436,29.80942763,129.61,129.57,49.80942763]
[1742137046039,29.80942763,129.61,129.57,20.0]
[1742137046650,29.80942763,129.61,129.57,29.80942763]
[1742137047243,29.80942763,129.62,129.57,29.80942763]
[1742137047768,7.7137,129.64,129.56,29.87242763]
[1742137047953,29.80942763,129.62,129.57,29.80942763]
[1742137048950,29.80942763,129.61,129.56,29.87242763]
[1742137049152,18.6258242,129.6,129.56,0.063]
[1742137049363,18.6258242,129.6,129.56,18.6888242]
[1742137049673,18.6258242,129.61,129.56,18.6888242]
[1742137049851,18.6258242,129.62,129.57,18.6258242]
[1742137050960,18.6258242,129.6,129.56,0.063]
[1742137051362,18.6258242,129.59,129.56,0.063]
[1742137051565,18.6258242,129.58,129.56,0.063]
[1742137051873,18.6258242,129.59,129.56,0.063]
[1742137053378,18.6258242,129.58,129.56,0.063]
[1742137053570,7.58,129.6,129.56,0.063]
[1742137053571,18.6258242,129.57,129.56,0.063]
[1742137054649,18.6258242,129.58,129.56,0.063]
[1742137055560,18.6258242,129.57,129.56,0.063]
[1742137056851,26.3436242,129.57,129.56,0.063]
[1742137060379,45.2775962,129.57,129.56,0.063]
[1742137060760,83.1979204,129.57,129.49,0.063]
[1742137060961,18.6258242,129.51,129.49,0.063]
[1742137062190,7.52,129.54,129.49,0.063]
[1742137062491,18.6258242,129.53,129.49,0.063]
[1742137063191,18.6258242,129.52,129.49,0.063]
[1742137063986,18.6258242,129.51,129.49,0.063]
[1742137064184,18.6258242,129.52,129.49,0.063]
[1742137065597,18.6258242,129.51,129.49,0.063]
[1742137066101,18.6258242,129.5,129.49,0.063]
[1742137069882,18.933972,129.52,129.49,0.063]
[1742137070084,18.6258242,129.5,129.49,0.063]
[1742137070601,7.44,129.54,129.49,0.063]
[1742137070807,18.6258242,129.53,129.49,0.063]
[1742137070987,7.44,129.54,129.49,0.063]
[1742137070988,18.6258242,129.52,129.49,0.063]
[1742137071188,26.0858242,129.53,129.49,0.063]
[1742137071709,1.5939,129.56,129.5,18.6258242]
[1742137071886,18.6258242,129.54,129.49,18.6888242]
[1742137072085,18.6258242,129.54,129.49,0.063]
[1742137072502,18.6258242,129.55,129.5,18.6258242]
[1742137072901,18.6258242,129.54,129.5,18.6258242]
[1742137073092,18.6258242,129.54,129.49,18.6888242]
[1742137074706,18.6258242,129.54,129.5,18.6258242]
[1742137075088,18.6258242,129.55,129.5,18.6258242]
[1742137075289,18.6258242,129.54,129.5,18.6258242]
[1742137075809,18.6258242,129.54,129.49,18.6888242]
[1742137076190,18.6258242,129.54,129.5,18.6258242]
[1742137077497,18.6258242,129.55,129.5,18.6258242]
[1742137077910,18.6258242,129.54,129.5,18.6258242]
[1742137078830,18.6258242,129.54,129.49,18.6888242]
[1742137080412,18.6258242,129.52,129.49,0.063]
[1742137080786,9.0839,129.56,129.49,0.063]
[1742137080787,18.6258242,129.53,129.49,0.063]
[1742137080990,18.6258242,129.52,129.49,0.063]
[1742137081191,18.6258242,129.51,129.49,0.063]
[1742137081391,18.6258242,129.5,129.49,0.063]
[1742137082502,7.4,129.51,129.49,0.063]
[1742137082688,18.6258242,129.5,129.49,0.063]
[1742137085927,7.4,129.51,129.49,0.063]
[1742137085928,26.0258242,129.51,129.49,0.063]
[1742137086104,7.4,129.51,129.49,0.063]
[1742137088012,18.6258242,129.5,129.49,0.063]
[1742137088432,26.0258242,129.51,129.49,0.063]
[1742137089230,18.6258242,129.5,129.49,0.063]
[1742137090309,7.4,129.51,129.49,0.063]
[1742137091333,18.6258242,129.54,129.49,18.6888242]
[1742137092219,18.6258242,129.53,129.49,0.063]
[1742137092528,7.38,129.55,129.49,0.063]
[1742137092730,18.6558242,129.56,129.51,18.6258242]
[1742137092912,18.6258242,129.54,129.5,1.5418]
[1742137093112,7.38,129.55,129.49,0.063]
[1742137093325,18.6258242,129.54,129.49,18.6888242]
[1742137093925,18.6258242,129.51,129.49,0.063]
[1742137095224,18.6258242,129.52,129.49,0.063]
[1742137097430,18.6258242,129.51,129.49,0.063]
[1742137098542,18.6258242,129.5,129.49,0.063]
[1742137099330,18.6258242,129.52,129.49,0.063]
[1742137101233,18.6258242,129.51,129.49,0.063]
[1742137101636,18.6258242,129.52,129.49,0.063]
[1742137102146,26.313972,129.55,129.49,0.063]
[1742137102147,18.6258242,129.54,129.49,0.063]
[1742137102348,18.6258242,129.54,129.49,18.6888242]
[1742137102644,25.9258242,129.55,129.5,18.6258242]
[1742137103248,25.9258242,129.55,129.49,18.6888242]
[1742137103434,18.6258242,129.54,129.49,18.6888242]
[1742137103863,18.6258242,129.54,129.49,0.063]
[1742137104253,18.6258242,129.53,129.49,0.063]
[1742137104629,18.6258242,129.52,129.49,0.063]
[1742137105041,18.6258242,129.5,129.49,0.063]
[1742137105240,15.0486,129.56,129.49,0.063]
[1742137105451,18.6258242,129.55,129.49,20.2431242]
[1742137105651,25.9458242,129.55,129.49,20.2431242]
[1742137105850,25.9458242,129.55,129.49,26.4722242]
[1742137106655,25.9458242,129.55,129.5,18.6258242]
[1742137106656,7.32,129.55,129.5,18.6258242]
[1742137106848,25.9458242,129.55,129.5,18.6258242]
[1742137107030,25.9458242,129.55,129.49,26.4722242]
[1742137107238,18.6258242,129.55,129.5,18.6258242]
[1742137109264,18.6258242,129.55,129.49,26.4722242]
[1742137109760,18.6258242,129.54,129.49,7.8464]
[1742137109941,18.6258242,129.54,129.49,26.4722242]
[1742137110641,18.6258242,129.53,129.49,7.8464]
[1742137111663,7.33,129.56,129.49,7.8464]
[1742137111866,18.6258242,129.53,129.49,7.8464]
[1742137112163,18.6258242,129.54,129.49,26.4722242]
[1742137112860,7.33,129.56,129.49,26.4722242]
[1742137113047,18.6258242,129.54,129.49,26.4722242]
[1742137113259,18.6258242,129.54,129.49,19.77857101]
[1742137113260,11.93217101,129.54,129.49,19.77857101]
[1742137114462,11.93217101,129.55,129.5,11.93217101]
[1742137115148,11.93217101,129.54,129.49,7.8464]
[1742137115348,11.93217101,129.54,129.49,19.77857101]
[1742137116055,11.93217101,129.55,129.49,19.77857101]
[1742137116450,11.93217101,129.55,129.49,7.8464]
[1742137116657,11.93217101,129.53,129.49,7.8464]
[1742137118742,11.93217101,129.52,129.49,7.8464]
[1742137120370,11.93217101,129.54,129.49,19.77857101]
[1742137121550,11.93217101,129.53,129.49,7.8464]
[1742137122077,11.93217101,129.52,129.49,7.8464]
[1742137122251,11.93217101,129.51,129.49,1.6173]
[1742137123682,26.263972,129.56,129.49,13.54947101]
[1742137123864,11.93217101,129.53,129.49,1.6173]
[1742137125067,11.93217101,129.55,129.49,13.54947101]
[1742137125373,11.93217101,129.54,129.49,13.54947101]
[1742137126574,11.93217101,129.51,129.49,1.6173]
[1742137126777,11.93217101,129.5,129.49,0.063]
[1742137127770,47.72868404,129.54,129.49,0.063]
[1742137127771,11.93217101,129.51,129.49,0.063]
[1742137130483,18.64964886,129.55,129.49,0.063]
[1742137130676,11.93217101,129.52,129.49,0.063]
[1742137130980,15.19076157,129.56,129.49,0.063]
[1742137130981,0.03,129.56,129.51,11.93217101]
[1742137131154,0.03,129.56,129.53,11.93217101]
[1742137131680,0.03,129.56,129.54,11.93217101]
[1742137132177,0.03,129.56,129.55,11.93217101]
[1742137132760,0.03,129.56,129.54,11.93217101]
[1742137133175,0.03,129.56,129.55,18.63011535]
[1742137140478,0.03,129.56,129.55,20.0]
[1742137140672,0.03,129.56,129.55,38.63011535]
[1742137141467,0.03,129.56,129.55,46.76871535]
[1742137141784,0.03,129.6,129.55,66.86000307]
[1742137141966,0.03,129.6,129.59,18.63011535]
[1742137143490,0.03,129.6,129.56,18.933972]
[1742137143665,0.03,129.6,129.59,18.63011535]
[1742137144170,0.03,129.6,129.59,45.3988307]
[1742137144362,0.03,129.6,129.59,26.76871535]
[1742137145563,0.03,129.6,129.59,8.1386]
[1742137145779,0.03,129.6,129.59,26.76871535]
[1742137148980,0.03,129.67,129.62,20.0]
[1742137149160,0.03,129.67,129.66,18.63011535]
[1742137150186,0.03,129.67,129.66,37.56408735]
[1742137150388,0.03,129.67,129.66,56.1942027]
[1742137151587,0.03,129.69,129.68,20.0]
[1742137151768,0.03,129.69,129.68,38.63011535]
[1742137152372,0.03,129.69,129.68,59.20788735]
[1742137152569,0.03,129.69,129.68,40.27391535]
[1742137154968,0.03,129.69,129.68,59.20788735]
[1742137155196,0.03,129.69,129.68,371.20788735]
[1742137155574,0.03,129.69,129.68,40.27391535]
[1742137156096,0.03,129.69,129.68,59.14688735]
[1742137156411,0.03,129.69,129.68,60.30301809]
[1742137156604,0.03,129.69,129.68,59.14688735]
[1742137157180,0.03,129.69,129.68,65.66988735]
[1742137157394,2.8049098,129.71,129.68,65.66988735]
[1742137157697,2.8049098,129.71,129.7,37.56408735]
[1742137158275,2.8049098,129.71,129.7,44.82408735]
[1742137159091,2.8049098,129.71,129.7,26.17443849]
[1742137159300,0.03,129.73,129.72,20.28432314]
[1742137159475,0.03,129.73,129.72,57.54455384]
[1742137160085,0.03,129.73,129.72,63.72445783]
[1742137160307,0.03,129.73,129.72,57.54455384]
[1742137160513,0.03,129.73,129.72,20.0]
[1742137160697,0.03,129.73,129.72,38.63011535]
[1742137161019,0.03,129.73,129.69,18.63011535]
[1742137161215,8.49273602,129.74,129.69,20.0]
[1742137161414,8.49273602,129.74,129.69,18.63011535]
[1742137161599,8.8146,129.76,129.68,18.63011535]
[1742137161600,18.63011535,129.73,129.68,18.63011535]
[1742137161800,18.63011535,129.74,129.69,18.63011535]
[1742137162298,18.63011535,129.73,129.69,18.63011535]
[1742137162500,18.63011535,129.74,129.69,18.63011535]
[1742137162902,8.8146,129.76,129.71,18.63011535]
[1742137163113,8.8146,129.76,129.72,18.63011535]
[1742137163593,18.63011535,129.75,129.7,18.63011535]
[1742137165022,18.66011535,129.75,129.7,18.63011535]
[1742137165620,18.66011535,129.75,129.69,18.63011535]
[1742137165621,18.63011535,129.74,129.69,18.63011535]
[1742137166127,18.63011535,129.73,129.68,38.69311535]
[1742137166426,18.63011535,129.74,129.69,38.63011535]
[1742137167002,18.63011535,129.72,129.68,0.063]
[1742137167222,18.63011535,129.72,129.68,20.063]
[1742137167520,0.03,129.75,129.68,20.063]
[1742137167733,18.66011535,129.75,129.68,20.063]
[1742137167940,18.63011535,129.74,129.69,18.63011535]
[1742137169333,18.66011535,129.75,129.7,18.63011535]
[1742137169525,18.63011535,129.74,129.69,18.63011535]
[1742137170215,18.63011535,129.73,129.68,38.69311535]
[1742137170436,18.63011535,129.72,129.68,0.063]
[1742137170857,18.63011535,129.73,129.68,18.69311535]
[1742137171320,18.66011535,129.75,129.7,18.63011535]
[1742137171518,25.94011535,129.75,129.7,18.63011535]
[1742137172016,25.94011535,129.75,129.68,0.063]
[1742137172017,18.66011535,129.75,129.68,0.063]
[1742137172217,0.03,129.75,129.73,18.63011535]
[1742137172735,0.03,129.75,129.71,18.63011535]
[1742137173131,0.03,129.75,129.72,18.63011535]
[1742137173335,0.03,129.75,129.71,18.63011535]
[1742137174440,18.66011535,129.75,129.7,18.63011535]
[1742137175250,18.63011535,129.74,129.69,38.63011535]
[1742137175637,18.66011535,129.75,129.7,18.63011535]
[1742137176149,18.63011535,129.73,129.68,0.063]
[1742137176336,18.63011535,129.73,129.68,18.69311535]
[1742137176533,18.63011535,129.74,129.69,18.63011535]
[1742137176860,18.66011535,129.75,129.7,18.63011535]
[1742137177861,18.66011535,129.75,129.71,18.63011535]
[1742137177862,0.03,129.75,129.71,18.63011535]
[1742137178064,20.19781535,129.79,129.74,18.63011535]
[1742137178253,18.63011535,129.78,129.71,20.0]
[1742137178460,18.63011535,129.76,129.71,18.63011535]
[1742137179449,18.63011535,129.75,129.7,38.63011535]
[1742137181658,9.13202314,129.79,129.7,20.0]
[1742137181846,18.63011535,129.77,129.72,18.63011535]
[1742137182047,18.63011535,129.77,129.71,18.63011535]
[1742137182458,1.5677,129.79,129.75,18.63011535]